Workbook

Sheet Help Sheet
A2: Quick Guide | B2: Welcome to the excel workbook that makes your tough decisions easier. Wedding can be SO stressful, but the bridge and groom should not have to spend their energy sorting through guest lists and calculating costs of everything they want. Our workbook assists you in these decisions in two different ways.
B5: Guest List | C5: Our Guest List page is where you enter your guests and their addresses, then use the sort button at the top of the column to place that guest in alphabetical order in the list, or to sort by addresses. The main feature of this page is the "invite evaluation" command button, which brings up a form where you select a guest, then answer a series of questions about that guest's relationship to the bride and groom. The answers to these questions are associated with a point system and the points are summed at the end of the series of questions and places the guest and their address on the "InviteCalculator" sheet in the "invite" column to suggest you invite them to the wedding, the "announcement" column to suggest you send them an announcement, or the "manual choice" column, where the bride/groom manually places that guest on either list. If, based on your responses, the selected guest should not be considered, they will be deleted from the list.
B17: Budget | C17: Our budget sheet helps you calculate how much of your budget you are spending on each item, such as a DJ, a venue, and whatever else you decide to add. To add an item to the budget table, click on the "Add Item" button and fill out the boxes you have information for, then select "Add to Budget". All of the values on the sheet will automatically update whenever a value changes. The three boxes at the top left corner of the page display your initial budget, the total spendings, and the difference between the two (budget left availabe to spend) and turns green if you have money left to spend and red if you have spent more than you budgeted.

Sheet Budget
A2: Initial Budget: | B2: =SUM(F8:F48) -> 14200
A3: Total Cost: | B3: =SUM(H8:H48) -> 13450
A4: Budget left: | B4: =B2-B3 -> 750 | C4: Yay! You have extra honeymoon cash
A7: Item | B7: Company | C7: phone # | D7: email | E7: website | F7: budgeted | G7: % of Budget | H7: actual cost | I7: % of total | J7: notes
A8: Bride's Gown | B8: David's Bridal Centralia | E8: www.davidsbridal.com | F8: 1000 | G8: =F8/$B$2 -> 0.07042253521 | H8: 800 | I8: =Table1[[#This Row],[actual cost ]]/$B$3 -> 0.0594795539
A9: Cake | B9: Mom's friend ? | F9: 400 | G9: 0.02816901408 | I9: =Table1[[#This Row],[actual cost ]]/$B$3 -> 0
A10: Caterer | B10: Bonanza BBQ | F10: 2000 | G10: 0.1408450704 | H10: 1500 | I10: =Table1[[#This Row],[actual cost ]]/$B$3 -> 0.1115241636
A11: DJ | B11: Dad's friend | C11: 360-584-8192 | D11: dj@dj.com | E11: dj.com | F11: 400 | G11: 0.02816901408 | H11: 500 | I11: =Table1[[#This Row],[actual cost ]]/$B$3 -> 0.03717472119
A12: Invitations | B12: Costco | E12: costco.com/photocenter | F12: 700 | G12: 0.04929577465 | H12: 450 | I12: =Table1[[#This Row],[actual cost ]]/$B$3 -> 0.03345724907
A13: Photography | B13: Steve Schmidt | F13: 1200 | G13: 0.08450704225 | H13: 1000 | I13: =Table1[[#This Row],[actual cost ]]/$B$3 -> 0.07434944238 | J13: hasn't set an official price
A14: Venue | B14: The Barn on Jackson | C14: 360-269-2843 | E14: https://thebarnonjackson.com | F14: 3000 | G14: 0.2112676056 | H14: 4000 | I14: =Table1[[#This Row],[actual cost ]]/$B$3 -> 0.2973977695 | J14: Address: 3605 Jackson Highway Chehalis WA 98532. Contact: Kari Windsor
A15: Videographer | B15: Haven Carr | C15: 360-791-9101 | F15: 500 | G15: 0.03521126761 | H15: 200 | I15: =Table1[[#This Row],[actual cost ]]/$B$3 -> 0.01486988848
A16: rings | B16: smith's | D16: smiths.com | F16: 5000 | H16: 5000 | I16: =Table1[[#This Row],[actual cost ]]/$B$3 -> 0.3717472119 | J16: haven't got them yet
G17: 0 | I17: =Table1[[#This Row],[actual cost ]]/$B$3 -> 0
G18: 0 | I18: =Table1[[#This Row],[actual cost ]]/$B$3 -> 0
G19: 0 | I19: =Table1[[#This Row],[actual cost ]]/$B$3 -> 0
G20: 0 | I20: =Table1[[#This Row],[actual cost ]]/$B$3 -> 0
G21: 0 | I21: =H21/$B$3 -> 0
G22: 0 | I22: =H22/$B$3 -> 0
G23: 0 | I23: =H23/$B$3 -> 0
G24: 0 | I24: =H24/$B$3 -> 0
G25: 0 | I25: =H25/$B$3 -> 0
G26: 0 | I26: 0
G27: 0 | I27: 0
G28: 0 | I28: 0
G29: 0 | I29: 0
G30: 0 | I30: 0
G31: 0 | I31: 0
G32: 0 | I32: 0
G33: 0 | I33: 0
G34: 0 | I34: 0
G35: 0 | I35: 0
G36: 0 | I36: 0
G37: 0 | I37: 0
G38: 0 | I38: 0
G39: 0 | I39: 0
G40: 0 | I40: 0
G41: 0 | I41: 0
G42: 0 | I42: 0
G43: 0 | I43: 0
G44: 0 | I44: 0
G45: 0 | I45: 0
G46: 0 | I46: 0
G47: 0 | I47: 0
G48: 0 | I48: 0
G49: 0 | I49: 0
G50: 0 | I50: 0
G51: 0 | I51: 0
G52: 0 | I52: 0
G53: 0 | I53: 0
G54: 0 | I54: 0

Sheet Guest List
B2: Possible Guest List
B4: CONTACT INFO
B5: Name(s) | C5: Address
B6: Alexa Travis | C6: 3316 W Newton Ave Visalia, CA 93291
B7: Ally Turkington | C7: 1919 Evergreen Pk Dr Sw olympia wa 98502
B8: Amanda Rentzell | C8: 5707 57th St NW, Gig Harbor WA 98335 | E8: You can find your results on the InviteCalculator page, or watch the row be deleted from the table if that person should not be invited.
B9: Amanda Rickey | C9: 33601 39th Ave SW, Federal Way, WA 98023
B10: Amanda Rickey | C10: 33601 39th Ave SW, Federal Way, WA 98023
B11: Amy & Cassie Mullin | C11: 3203 Long Lake Dr SE Lacey, WA 98503
B12: Amy Rawlings | C12: Give in person
B13: Andy and Sam Wilkie | C13: 4419 Covey St. SE, Olympia, WA 98501
B14: Barbara Rawlings | C14: 4606 Archer Dr SE Lacey WA, 98513
B15: Becky Stander Stander | C15: 4611 s 3500 W c208 Roy 84067
B16: Bill & Jill Kerr | C16: 3086 W 8525 S, West Jordan UT 84088
B17: Bonni Stratton | C17: 3131 Sylvan Dr W. University Place, WA 98466
B18: Bonnie Johnson | C18: 401 Highland View Dr. Knoxville, TN 37920
B19: Brandon and Alyshia Shellhart | C19: 1100 Boulevard Rd, SE, Olympia, WA 98501-2647
B20: Brent and Kathy Kohler | C20: 4444 Village DR. SE, Olympia, WA 98501-4724
B21: Brett & Heather Bartlett | C21: PO Box 571 E Olympia, WA 98501
B22: Brian & Dani Johnson | C22: 2028 Arab Dr SE Tumwater, WA 98501
B23: Brian & Jennifer Fuller | C23: 2605 Farmer Lane SE, Olympia, WA 98501
B24: Brian & Mandi Aldrich | C24: 4111 41st Loop SE, Olympia, WA 98501
B25: Brian & Shiree Shirley | C25: 2214 E. 3000 N., Sugar City ID 83445
B26: Brook Swenson | C26: 4842 Rural Rd. Tumwater WA 98502 apt. 208
B27: Bryce & Elizabeth Brown | C27: 1910 80th ave se Tumwater wa 98501
B28: Bryce & Kelly Schneider | C28: 2838 Burnaby Park Loop SE, Olympia, WA 98501
B29: Cade & Sierra Otton | C29: 8558 Nesbit Ave N Apt 412 Seattle, WA 89103
B30: Caleb Blackhill
B31: Callie Goldsby | C31: 2035 Arab Dr SE Tumwater, WA 98501
B32: Camra Erickson | C32: 600 Fleetwood Dr, Ore City, TX 75683
B33: Carol & Zeke Schmus | C33: 94-643 Hikianalia Pl, Mililani, Hawaii 96789
B34: Casey & Stacey Lowe
B35: Cathy Hitchman | C35: 13711 Loreece Ln SW. Tenino. WA 98589
B36: Celia Scruton | C36: 3200 capital mall dr sw #0E-301
B37: Chad and Kaylene Stander | C37: 418 N 3550 W, Layton UT 84041
B38: Chris and Mandy Madill | C38: 2308 Cedar Park Loop SE, Olympia, WA 98501-4374
B39: Cielo Wilson | C39: 8418 201st E, Spanaway, WA 98387
B40: Cindy & Sam Kight | C40: 15139 Athey Loop, Woodbridge, VA 22193
B41: Clair and Sharon Ferris | C41: 5521 Cheri Estates Dr. SE, Olympia, WA 98501-4732
B42: Claire Bates | C42: 659 N 300 E Apt. 2, Provo, UT 84606
B43: Cody Mustain | C43: 3712 Carnegie Dr SE, Olympia WA 98503
B44: Colbi Stewart | C44: 3525 36th ave NW Olympia WA 98502
B45: Colin & Chrissy Rawlings | C45: 80011 B General Patton St, Fort Drum, NY 13603
B46: Colin & Chrissy Rawlings | C46: 80011 B General Patton St, Fort Drum, NY 13603
B47: Colton and Hinalei Blyle | C47: 2426 Leach Ct. SE, Olympia, WA 98501-3168
B48: Connor Campbell | C48: 1850 N. University #202, Provo, UT 84604
B49: Courtney & Brandt Vavricka | C49: 1207 Aspen Ave Provo, UT 84604
B50: Curtis & Jeanette Mack
B51: Cynthia Blyle | C51: 2521 53rd Way SE, Olympia, WA 98501-4784
B52: Dakoda Keller | C52: 4930 Donovan Dr SE Apt D
B53: Dallon & Monica Brown | C53: 1861 53rd Loop SE., Olympia, WA 98501-8003
B54: Dan & Jaimie Wilder | C54: 13439 Old HWY 99 SE. Tenino, WA 98501
B55: Dan & Lois Rhodes | C55: 295 E 5350 S Ogden, UT 84405
B56: Danicka and Bryce Werner | C56: 2032 Arab Dr SE Tumwater, WA 98501
B57: Daniel and Kathleen Conrad | C57: 2629 Ballantine Dr. SE, Olympia, WA 98501
B58: Darlene & Jared King | C58: 13345 Ducat CR, Corpus Christi, TX 78418
B59: Darrin & Rebecca Grondel | C59: 198 S 1230 W Hurricane, UT 84737
B60: Dave and Lindsay Carter | C60: 5017 Siskiyou Loop SE, Olympia, WA 98501
B61: David and Simone Harris | C61: 5025 Chambers Creek Loop SE, Olympia, WA 98501-7130
B62: Debbie & Chad Crowther
B63: Debbie & Curtis Olsen | C63: 6394 S. Fernbrook, Taylorsville, UT 84129
B64: Derek & Tina Ivanhoff | C64: 6837 Desperado Dr SE, Tumwater, WA 98501
B65: Devon & Marilyn Knutson | C65: 27030 Serenity Lane, Caldwell ID 83607
B66: Dillon Stricklett | C66: 915 Tartan Dr SW Tumwater WA 98501
B67: Doris Johnson | C67: 2201 Little Valley Road. Blaine, TB 37709)
B68: Doug and Lindy Badger | C68: 3139 60th Loop SE, Olympia, WA 98501
B69: Drake Keyes | C69: 8729 Pacific Ave SE Unit C, Olympia, WA 98512
B70: Eddie and Shanda Tomsik | C70: 3016 57th Ave SE, Olympia, WA 98501
B71: Egi Kacani | C71: 1237 Cross St Ogden, UT 84404
B72: Eleanor Winkler | C72: 2330 Woodfield Loop SE, Olympia, WA 98501
B73: Eliza Lutz | C73: 1844 W 2000 S, Apt. A, Roosevelt, UT 84066
B74: Elliot Olsen | C74: 801 W 2150 N Provo, UT 84604
B75: Emma Johnson | C75: 201 W 1st St. Rigby, ID 83442
B76: Eric and Linda Green | C76: 2203 Tandem Ct, SE, Olympia, WA 98501
B77: Erin and Ashley Daley | C77: 5117 Arlington Ct. SE, Tumwater, WA 98501-4798
B78: Ethan Chrisope | C78: 1219 N Garden St Apt. A, Bellingham, WA 98225
B79: Fran Rader | C79: 2405 Alberta Dr. Knoxville, TN 37920
B80: Geoff Hulsey | C80: In person
B81: Greg & Connie White | C81: 216 Tennessee Rd, Winlock
B82: Greg & Renee Bert | C82: 8011 Deschutes Ct. S.E, Tumwater, WA 98501
B83: Greg & Tammy Newbill | C83: 4622 Ferndale Court SE, Olympia, WA 98501
B84: Hannah Barrett | C84: 4628 72nd St Ct E Tacoma, WA 98443
B85: Hannah Gagley | C85: 36656 55th Pl S. Auburn, WA 98001
B86: Hayley Powers | C86: 8382 Atlanta Avenue Apt. C, Huntington Beach, CA 92646
B87: Heather & Jeff Christensen | C87: In person
B88: Heidi Seldomridge
B89: James & Connie Charette | C89: 9429 Delphi Rd SW, Olympia, WA 98512
B90: James & Danielle Corbin
B91: James and Tara Dixon | C91: 2110 18th Ave SE, Olympia, WA 98501-2611
B92: James Dixon
B93: James Hansen | C93: 7421 Zircon Drive SW Lakewood WA 98498
B94: Janet & Greg French | C94: 7618 Lowland Lane. Knoxville, TN 37920
B95: Jared & Wendy Burbidge | C95: 4433 Briggs Dr SE Olympia, Washington 98501-4930
B96: Jason & Angela Donovan | C96: 823 Forrestal PL NE, Lacey, WA 98516
B97: Jen Nelson | C97: 7814 Ne 91st Ave Vancouver, WA 98662
B98: Jenny Hernandez | C98: 271E 4300S. Ogden, UT 8445
B99: Jess Nelson | C99: 1808 64th Way SE, Tumwater, WA 98501
B100: Jessie & Logan James
B101: Jim Click | C101: 2616 Hidden Cove Ln Olympia, WA 98502
B102: Jo Tower | C102: 1504 S Mildred #204, Tacoma WA 98465
B103: John & Juli Skeen | C103: 3208 30th Ave. SE, Olympia, WA 98501
B104: Jolene and Max Stander | C104: 3758 w 4225 s., West Haven UT 84401
B105: Jonathon and Tiffany Paynter | C105: 2521 53rd Way SE, Olympia, WA 98501-4784
B106: Judy & Rocky Nelson | C106: 22609 North 32nd Street Phoenix, AZ, 85050
B107: Julia and Jacob Price | C107: 1180 24th St Apt. 3 Ogden. UT 84401
B108: Julie Hass | C108: 4235 Cashmere Dr NE Lacey WA
B109: Julie White | C109: 119 Elma Dr N Centralia, WA 98531
B110: Kaden Kirkham | C110: 75-6008 Alii Dr Apt 122, Kailua-Kona, HI, 96740
B111: Kaitlyn Stander | C111: 2654 W 4100 S Roy, UT 84067
B112: Kara Tuterow | C112: 4054 West Coneflower Lane San Tan Valley, AZ 85142
B113: Karyn & Patti Challender | C113: 203 Idaho ST. S, Rainier, WA 98576
B114: Kate Gose | C114: 3300 21st Ave SW Apt. D-01 Olympia, WA 98512
B115: Kate Powers | C115: 6956 Peach Tree Road, Carlsbad 92011
B116: Katie & Tom Turcotte | C116: 1445 Kaiser Rd Sw Olympia WA 98512
B117: Katy Nelson | C117: 119 Elma Dr N Centralia, WA 98531
B118: Ken & Evylin Hodges | C118: 5010 S 3325 W, Roy UT 84067
B119: Kenny Apple | C119: 3026 70th Way SW, Olympia, WA 98512
B120: Kenny Turner
B121: Kimberly Smack-Rush | C121: 6018 Darby Court SE Tumwater, WA 98501
B122: Kirk & Mardee Beatty | C122: 4549 Trenton Lp. SE, Olympia, WA 98501
B123: Kodi Smart | C123: 4441 Fir Tree Road SE
B124: Kristin Jewell | C124: 1615 13th Ave SW Olympia WA 98502
B125: Kurt & Amy Gress | C125: 3746 Cassie Dr SW, Tumwater, WA 98512
B126: Kurt & Karen Poch | C126: 11354 Abbotsford Lane, Sandy, UT 84070
B127: Kyle & Allison Klein | C127: 4420 Village Dr. SE, Olympia, WA 98501
B128: Kyle and Krista Kisebach | C128: 3510 Wilderness Dr. SE, Olympia, WA 98501-4940
B129: Kyle Jones | C129: 3916 Hoadly St SE, Tumwater, 98501
B130: Kyler & Mason Zabel | C130: 6908 Foster Dr SW Olympia, WA 98512
B131: Lana and Brian Gibson | C131: 5928 Dalton Road, Fayetteville, NC 28314
B132: Larry and Cindy Dunn | C132: 4713 Canady Ct. SE, Olympia, WA 98501
B133: Larry, Nancy & Sam Brubaker | C133: 3410 Gravely Beach Loop, Olympia, WA 98502
B134: Laurie Raben | C134: 3105 Denali Lane SE, Olympia, WA 98501
B135: Leah & Dan Dever | C135: 341 S 200 W,Providence UT 84332-9722
B136: Lee & Anne Wojnar
B137: Leia Davis | C137: 1118 Legion way Olympia, WA 98501
B138: Leonard Smith | C138: 3712 Carnegie Dr SE, Olympia WA 98503
B139: Linda Cotton
B140: Lindsay and Devin Watkins | C140: 3088 Quincy Ave, Ogden UT, 84403
B141: Lucky Baccus | C141: 4038 Rock Maple Lane NW Q202 Olympia WA 98502
B142: Mac and Anne Rainwater | C142: 2215 Kildane Way SE, Olympia, WA 98501-3056
B143: Madison & Lane Spenker | C143: 11 Alpine Way, Longview, WA 98632
B144: Margaret Palmer | C144: 137 Oakdale Dr. Russellville, KY 42276
B145: Marjean & Sid Otton | C145: 6835 6th Ave SW Tumwater, Washington 98501-5405
B146: Mark & Kerri Wright | C146: 4521 Trenton Lp SE Olympia, WA 98501
B147: Mark & Lindsey Hopkins | C147: 3434 Merryman Place SE, Olympia, WA 98501
B148: MaryJo Williams | C148: 4324 Lakeview Ct SE. Lacey, WA 98503
B149: Matthew and Audrienne Shellhart | C149: 4549 Juli Ct. SE, Olypmia, WA 98501-4763
B150: Max Stander | C150: 2092 west 5900 south, Roy UT 84067
B151: Mckayla Murphy | C151: 1090 W betz rd Apt 23211, Cheney, WA 99004
B152: Meagan and Tanner Griffin | C152: 1975 W. Joseph Acres Rd, Kaysville UT 84037
B153: Megan Atkinson | C153: 1925 W 9525 S, South Jordan, UT. 84095
B154: Megan Breckenridge | C154: 4842 Rural Road SW Apt 208
B155: Megan Card | C155: 7512 91st Ave SE. Olympia, WA 98513
B156: Melissa & Chad Stussy | C156: Tumwater High School
B157: Melyssa Nocis | C157: 12206 SE 218th Ct Kent, WA 983031
B158: Michael & Pam McCormick
B159: Michelle & Eric Shipley | C159: 4530 Village Springs Run. Dunwoody, GA 30338
B160: Michelle and Reed Montierth | C160: 2793 E. 2100 N., Layton UT 84040
B161: Michelle Montierth | C161: 2793 E. 2100 N., Layton UT 84040
B162: Mickey Risenmay | C162: 10103 167th PL NE Redmond, WA 98052
B163: Mignon and James Quigley | C163: 1707 Bison Drive Williston\, ND 58801
B164: Mike and Helen Stewart | C164: 4944 Siskiyou Lp SE, Olympia, WA 98501`
B165: Mike and Judy Bigelow | C165: 3702 Holiday Dr. SE, Olympia, WA 98501
B166: Mike Clark
B167: Monica & Paul Chase | C167: 522 N. 100 E, Mendon, UT 84325
B168: Monte & Kathy Knutson | C168: 508 Brickstone DR, Apex, NC 27502
B169: Morgan Ziegler | C169: In person
B170: Mr & Mrs Don Schmus | C170: 94-643 Hikianalia Pl, Mililani, Hawaii 96789
B171: Mr. & Mrs. James Monday | C171: 518 Bridgeway Dr. Maryville, TN 37801
B172: Nicole & Gordon Call | C172: 921 W. 3150 S, Syracuse, UT 84075
B173: Nicole Boysen | C173: 4862 Rural Rd SW #108 Tumwater WA 98502
B174: Nicole Howard | C174: 904 4th St, Cheney, WA 99004
B175: Pat DeNeui | C175: 1425 Arab Dr SE Tumwater, WA 98501
B176: Patti Challender | C176: 203 Idaho Ave N. Rainier, WA 98576-1222
B177: Patty Kress | C177: 1935 65th Ave. SE., Tumwater, WA 98501
B178: Paul & Stephanie Strophy | C178: In person
B179: Paulette Vigoren | C179: 325 W 5000 S Ogden, UT, 84405
B180: Penny Beard | C180: 2917 24th Ave. SE, Olympia, WA 98501
B181: Phil & Catrina Murphy
B182: Phillip And Joleen Harlan | C182: 4706 Canady Ct. SE, Olympia, WA 98501
B183: Ray Knutson | C183: Summerfield Retirement 911 North 800 West, Orem UT 84057
B184: Rebecca Ciolino | C184: 6101 Majestic Way, Mountain Green, Ut 84050
B185: Rebecca Stander-Ciolino | C185: 4611 s 3500 W c208 Roy 84067
B186: Regina & Jim Brown | C186: 7139 Cavalier Loop SW, Olympia WA 98512
B187: Reid & Kathy Bates | C187: 9636 Springer Lake Lane SE Olympia, Washington 98501
B188: Renee Hodges | C188: 4395 S 325 E, Ogden UT 84405-5815
B189: Rich & Allisha Marlatt | C189: 1807 Yelm Hwy SE, Olympia, WA 98501
B190: Roger and Lynne Forbush | C190: 5032 Laura Lane SE, Olympia, WA 98501
B191: Roland & Valerie Stander | C191: Box 23, Bear River City UT 84301
B192: Roman and Patrice Daniels-Brown | C192: 1725 52nd Ave SE, Olympia, WA 98501-4718
B193: Ron & Cheri Campbell | C193: 638 West 1870 South, Payson, UT 84651
B194: Ron Slosson
B195: Russell and Kristin Brown | C195: 4601 Sydney Rose Ct. SE, Olympia, WA 98501-6013
B196: Ryan and Allison Stander | C196: 3915 S 2275 W, Roy, UT 84067
B197: Ryan and Johanna Johnson | C197: 2519 Cedar Park Loop SE, Olympia, WA 98501
B198: Sara Stratton | C198: 1308 Boise St. Tacoma, WA 98466
B199: Savannah Combe | C199: 4631 W 4450 S. West Haven, UT 84401
B200: Sax Rodgers | C200: In person
B201: Scott & Jeannie Carlson | C201: 4212 amber CT SE Olympia wa 98501
B202: Scott & Kim Howard
... 42 more rows

Sheet InviteCalculator
B4: Invite | E4: Announcement | H4: Manual Choice
B5: Angela Celedon | C5: 10605 16th Ave Ct S Apt. 14, Tacoma, WA 98444 | E5: Amy Rau | F5: 2316 Westlake Dr. SE, Lacey, WA 98503 | H5: Bettye Phifer | I5: 3086 W 8525 S, West Jordan UT 84088
B6: Andrew Sanchez | C6: 4419 Covey St. SE, Olympia, WA 98501 | H6: Aaron & Tricia Jelcick | I6: PO Box 921 Tenino, WA 98589
B7: Abby & Scott Carter | C7: 3516 Buckingham Court SE, Olympia, WA 98501 | H7: Al & Lucy Ewing | I7: 3316 W Newton Ave Visalia, CA 93291
